Cogmind - Beta 15 @@@ ROGUE MODE // 2025.05.09 @ 15:32:47 Player: Sap Result: Destroyed by 78-KKI(R) with Subdweller Machine Gun Performance ------------- Evolutions (0) 0 Regions Visited (3) 600 Robots Destroyed (5) 25 Value Destroyed (122) 122 Prototype IDs (0) 0 Alien Tech Used (0) 0 Bonus (0) 0 TOTAL SCORE: 747 Bonus ------- None Cogmind --------- Core Integrity 0/250 Matter 300/300 Energy 95/100 System Corruption 1% Temperature Cool (6) Movement Walking (130) Location -10/Subcaves Parts ------- > --- POWER (1) -------- (None) > --- PROPULSION (2) --- Titanium Leg > --- UTILITY (2) ------ Small Storage Unit > --- WEAPON (2) ------- Medium Laser > --- INVENTORY (8) ---- Ion Engine Light Treads Aluminum Leg Aluminum Leg Sensor Array Sensor Array Improved Trap Extractor (0/6) EM Pulse Gun Peak State ------------ > --- POWER ------------ Light Ion Engine > --- PROPULSION ------- Aluminum Leg Titanium Leg > --- UTILITY ---------- Small Storage Unit Improved Propulsion Shielding > --- WEAPON ----------- EM Pulse Gun Medium Laser > --- INVENTORY -------- Ion Engine Light Treads Aluminum Leg Aluminum Leg Sensor Array Sensor Array Improved Trap Extractor EM Pulse Gun [Rating: 12] Favorites ----------- Power Light Ion Engine Engine Light Ion Engine Propulsion Aluminum Leg Leg Aluminum Leg Utility Small Storage Unit Device Terrain Scanner Storage Small Storage Unit Protection Improved Propulsion Shielding Weapon EM Pulse Gun Energy Gun EM Pulse Gun Build | -11 -10 -10 -10 ------- Run | Yrd Mat Min Sub Slots Evolved . | . . . . Power . | . . . . Propulsion . | . . . . Utility . | . . . . Weapon . | . . . . Parts Attached 10 | 6 1 1 2 Power 1 | 1 . . . Engine 1 | 1 . . . Core . | . . . . Reactor . | . . . . Propulsion 3 | 2 . . 1 Treads . | . . . . Leg 3 | 2 . . 1 Wheel . | . . . . Hover . | . . . . Flight . | . . . . Utility 3 | 1 1 1 . Device 1 | . 1 . . Storage 1 | 1 . . . Processor . | . . . . Hackware . | . . . . Protection 1 | . . 1 . Artifact . | . . . . Weapon 3 | 2 . . 1 Energy Gun 3 | 2 . . 1 Energy Cannon . | . . . . Ballistic Gun . | . . . . Ballistic Cannon . | . . . . Launcher . | . . . . Special Weapon . | . . . . Impact Weapon . | . . . . Slashing Weapon . | . . . . Piercing Weapon . | . . . . Special Melee Weapon . | . . . . Unidentified Prototypes . | . . . . Parts Lost 4 | . . . 4 Power 1 | . . . 1 Propulsion 1 | . . . 1 Utility 1 | . . . 1 Weapon 1 | . . . 1 Highest Loss Streak 4 | . . . 4 To Critical Strikes . | . . . . Average Backups 6 | 3 7 7 8 Power . | . 1 1 1 Propulsion 2 | 2 3 2 3 Utility 2 | . 2 3 3 Weapon . | . 1 1 1 Tool/Special . | . . . . Unused Backups 12 | . 5 1 6 Power 1 | . . . 1 Propulsion 6 | . 4 . 2 Utility 5 | . 1 1 3 Weapon . | . . . . Tool/Special . | . . . . Average Slot Usage (%) 99 | . 98 100 98 Engine 14 | . 14 14 14 Leg 28 | . 28 28 28 Device 8 | . 13 7 . Storage 14 | . 14 14 14 Protection 4 | . . 7 14 Energy Gun 27 | . 28 28 26 Peak Build Rating 12 | 6 7 10 12 Average Rating 7 | 4 6 8 10 On Entrance 5 | . 6 7 10 Naked Turns . | . . . . Heaviest Build 14 | 12 13 14 14 Greatest Support 20 | 20 20 20 20 Greatest Overweight (x) . | . . . . Average Overweight (x) . | . . . . Largest Inventory Capacity 8 | 8 8 8 8 Average Capacity 7 | 6 8 8 8 Most Carried 8 | 6 8 8 8 Average Carried 7 | 3 7 7 8 Final Capacity 8 | 8 8 8 8 Final Carried 8 | 6 7 8 8 Class Distribution -------------------- 100% | Mutant Dominant Class ---------------- Mutant | -10/Materials Mutant | -10/Mines Mutant | -10/Subcaves Resources | -11 -10 -10 -10 ----------- Run | Yrd Mat Min Sub Matter Collected 280 | 210 60 10 . Remotely . | . . . . Salvage Created 224 | . 180 . 44 Parts 12 | . 8 . 4 Haulers Intercepted . | . . . . Recyclers Shooed 1 | . 1 . . Parts Field Recycled . | . . . . Retrieved Matter . | . . . . Parts Self-Destructed 2 | . . . 2 Prevented . | . . . . Kills | -11 -10 -10 -10 ------- Run | Yrd Mat Min Sub Combat Hostiles Destroyed 2 | . 1 . 1 Guns 2 | . 1 . 1 Classes Destroyed 4 | . 3 . 1 Recycler 1 | . 1 . . Watcher 2 | . 2 . . Grunt 1 | . 1 . . Subdweller 1 | . . . 1 Best Kill Streak 3 | . 3 . 1 Combat Bots Only 1 | . 1 . 1 Max Kills in Single Turn 1 | . 1 . 1 Gunslinging . | . . . . Exploded . | . . . . Melee . | . . . . Uniques/NPCs Destroyed . | . . . . Combat | -11 -10 -10 -10 -------- Run | Yrd Mat Min Sub Hostile Shots Fired 43 | . 6 . 37 Missed 7 | . 1 . 6 Hits 36 | . 5 . 31 Projectile 36 | . 5 . 31 Critical Strikes 2 | . . . 2 Actively Blocked 1 | . . . 1 Damage Taken 733 | . 62 38 633 Core 266 | . 15 9 242 Absorbed by Shields . | . . . . Redirected to Shielding 112 | . . 19 93 Core Remaining (%) 100 | 100 . . . Volleys Fired 24 | . 15 . 9 Largest 2 | . 2 . 2 Hottest 90 | . 80 . 90 Shots Fired 44 | . 30 . 14 Gun 44 | . 30 . 14 Cannon . | . . . . Launcher . | . . . . Special . | . . . . Kinetic . | . . . . Thermal 7 | . . . 7 Explosive . | . . . . Electromagnetic 37 | . 30 . 7 Robot Hit Streak 8 | . 5 . 8 Robot Miss Streak 8 | . 8 . 1 Penetration Max . | . . . . Secondary Targets 1 | . . . 1 Max Gunslinging Chain 1 | . . . 1 Shots Hit Robots 23 | . 11 . 12 Core Hits 9 | . 6 . 3 Critical Kills . | . . . . Critical Parts Destroyed . | . . . . Critical Strikes 1 | . . . 1 Burn 1 | . . . 1 Melee Attacks . | . . . . Impact . | . . . . Slashing . | . . . . Piercing . | . . . . Sneak Attacks . | . . . . Combat Hostiles . | . . . . Follow-up Attacks . | . . . . Damage Inflicted 401 | . 262 . 139 Guns 324 | . 185 . 139 Cannons . | . . . . Explosions 77 | . 77 . . Melee . | . . . . Ramming . | . . . . Kinetic . | . . . . Thermal 151 | . 77 . 74 Explosive . | . . . . Electromagnetic 250 | . 185 . 65 Impact . | . . . . Slashing . | . . . . Piercing . | . . . . Highest Corruption 1 | . . 1 1 Average Corruption 1 | . . 1 1 Corruption Purged . | . . . . Corruption Blocked . | . . . . Overload Shots . | . . . . Overflow Damage 3 | . 3 . . Projectiles . | . . . . Explosions 3 | . 3 . . Melee . | . . . . Knockbacks . | . . . . Impact . | . . . . Kinetic . | . . . . Secondary . | . . . . Self-Inflicted Damage 8 | . 8 . . Shots 1 | . 1 . . Rammed . | . . . . Targets Rammed . | . . . . Kicked . | . . . . Crushed . | . . . . Highest Temperature 120 | . 120 . . Average Temperature 42 | . 42 . . Received Heat Transfer 174 | . 30 . 144 Siege Activations . | . . . . Martial Activations . | . . . . Shielding Activations . | . . . . Robots Disrupted . | . . . . Combat Hostiles . | . . . . Robots Corrupted . | . . . . Combat Hostiles . | . . . . Parts Fried . | . . . . Impact Corruptions . | . . . . Robots Melted . | . . . . Combat Hostiles . | . . . . Parts Melted . | . . . . Heat Transferred 396 | . 100 . 296 Parts Sabotaged . | . . . . Parts Stolen . | . . . . Parts Stripped . | . . . . Power Chain Reactions 2 | . 2 . . Alert | -11 -10 -10 -10 ------- Run | Yrd Mat Min Sub Maximum Alert Level . | . . . . Low Security (%) 100 | 100 100 100 . Level 1 . | . . . . Level 2 . | . . . . Level 3 . | . . . . Level 4 . | . . . . Level 5 . | . . . . High Security . | . . . . Max Security . | . . . . Peak Influence 25 | . 25 . . Initial . | . . . . Average 1 | . 3 . . Influence Increases 67 | . 67 . . Destroy 0b10 Robot/C 20 | . 20 . . Destroy 0b10 Robot/NC 15 | . 15 . . Destroy Leader 4 | . 4 . . Successful Hack 7 | . 7 . . Disable Machine 15 | . 15 . . Destroy Structure 6 | . 6 . . Influence Decreases 67 | . 67 . . Time Decay 67 | . 67 . . Squads Dispatched 2 | . 2 . . Investigation 1 | . 1 . . Extermination . | . . . . Reinforcement 1 | . 1 . . Assault . | . . . . Garrison . | . . . . Intercept . | . . . . Searches Triggered . | . . . . Construction Impeded . | . . . . Haulers Reinforced . | . . . . Active Scanning Responses . | . . . . Cargo Convoy Interrupts . | . . . . Stealth | -11 -10 -10 -10 --------- Run | Yrd Mat Min Sub Distress Signals . | . . . . Communications Jammed . | . . . . Distress Signals . | . . . . Times Spotted 10 | . 4 . 6 Peak Tracking Total 4 | . 1 . 4 Tactical Retreats . | . . . . Traps | -11 -10 -10 -10 ------- Run | Yrd Mat Min Sub Traps Triggered 2 | . 1 1 . Indirectly . | . . . . Trap Hack Attempts . | . . . . Triggered . | . . . . Disarmed . | . . . . Reprogrammed . | . . . . Reused . | . . . . Traps Extracted . | . . . . Installed . | . . . . Triggered . | . . . . Machines | -11 -10 -10 -10 ---------- Run | Yrd Mat Min Sub Machines Disabled 1 | . 1 . . Max in Single Turn 1 | . 1 . . Machines Repaired . | . . . . Machines Dismantled . | . . . . Machines Sabotaged . | . . . . Overloaded Fab Kills . | . . . . Hacking | -11 -10 -10 -10 --------- Run | Yrd Mat Min Sub Machines Accessed 4 | . 3 1 . Terminals 3 | . 3 . . Fabricators . | . . . . Repair Stations . | . . . . Recycling Units . | . . . . Scanalyzers . | . . . . Garrison Access . | . . . . Total Hacks 11 | . 10 1 . Successful 3 | . 2 1 . Failed 8 | . 8 . . Catastrophic 1 | . 1 . . Database Lockouts . | . . . . Manual . | . . . . Terminals 10 | . 10 . . Fabricators . | . . . . Repair Stations . | . . . . Recycling Units . | . . . . Scanalyzers . | . . . . Garrison Access . | . . . . Terminal Hacks 3 | . 2 1 . Open Door 1 | . . 1 . Locate Traps 1 | . 1 . . Recall Investigation 1 | . 1 . . Fabricator Hacks . | . . . . Repair Station Hacks . | . . . . Recycling Unit Hacks . | . . . . Scanalyzer . | . . . . Garrison Access Hacks . | . . . . Unauthorized Hacks . | . . . . Terminals . | . . . . Fabricators . | . . . . Repair Stations . | . . . . Recycling Units . | . . . . Scanalyzers . | . . . . Garrison Access . | . . . . Data Cores Recovered . | . . . . Used . | . . . . Hacking Detections 3 | . 3 . . Full Trace Events . | . . . . Feedback Events . | . . . . Feedback Blocked . | . . . . Robot Schematics Acquired . | . . . . Robots Built . | . . . . Authchips . | . . . . Time . | . . . . Total Robot Build Rating . | . . . . Part Schematics Acquired . | . . . . Parts Built . | . . . . Authchips . | . . . . Time . | . . . . Total Part Build Rating . | . . . . Parts Repaired . | . . . . Time . | . . . . Parts Recycled . | . . . . Recycled Matter . | . . . . Retrieved Matter . | . . . . Retrieved Components . | . . . . Parts Scanalyzed . | . . . . Part Schematics Acquired . | . . . . Parts Damaged . | . . . . Bothacking | -11 -10 -10 -10 ------------ Run | Yrd Mat Min Sub Used RIF Installer . | . . . . Robots Hacked . | . . . . Non-combat . | . . . . Combat . | . . . . Robot Hacks Applied . | . . . . Relay Couplers Released . | . . . . Fabnet Peak Effective % . | . . . . Robots Rewired . | . . . . Allies Hacked . | . . . . Hacks Repelled . | . . . . Allies | -11 -10 -10 -10 -------- Run | Yrd Mat Min Sub Total Allies . | . . . . Largest Group . | . . . . Highest-Rated Group . | . . . . Highest-Rated Ally . | . . . . Total Orders . | . . . . Ally Attacks . | . . . . Total Damage . | . . . . Kills . | . . . . Allies Corrupted . | . . . . Allies Melted . | . . . . Intel | -11 -10 -10 -10 ------- Run | Yrd Mat Min Sub Active Infowar (turns) 357 | . 256 101 . Terrain 357 | . 256 101 . Robot Analysis Total . | . . . . Derelict Logs Recovered 1 | . . . 1 Drone Launches . | . . . . Drone Recoveries . | . . . . Exploration | -11 -10 -10 -10 ------------- Run | Yrd Mat Min Sub Turns Passed 665 | 99 274 209 83 Spaces Moved 466 | 79 182 157 48 Core 16 | 16 . . . Treads . | . . . . Legs 450 | 63 182 157 48 Wheels . | . . . . Hover . | . . . . Flight . | . . . . Fastest Speed 50 | 50 120 120 120 Average Speed 117 | 105 120 120 120 Slowest Speed 120 | 120 120 120 120 Overloaded Moves . | . . . . Propulsion Burnouts . | . . . . Robots Hopped . | . . . . Potential Cave-ins . | . . . . Cave-ins Triggered . | . . . . Exploration Rate (%) 20 | 4 35 36 8 Regions Visited 3 Branch Regions 2 Pre-discovered Areas 1 | . . 1 . Known Exits Taken . | . . . . Unknown Exits Taken 3 | 1 1 1 . Scrap Searched 1 | . . 1 . Spaces Dug . | . . . . Terrain Destroyed 6 | . 6 . . Melee . | . . . . Projectile . | . . . . AOE 6 | . 6 . . Terrain Rammed . | . . . . Walls Destroyed . | . . . . Machines Disabled . | . . . . Actions | -11 -10 -10 -10 --------- Run | Yrd Mat Min Sub Total 539 | 92 210 178 59 Wait 18 | 1 . 17 . Move 463 | 78 181 156 48 Hop . | . . . . Pick Up 16 | 7 7 2 . Fast Attach 7 | 5 1 1 . Attach 1 | 1 . . . Detach . | . . . . Swap 2 | . . . 2 Drop 8 | . 6 2 . Fire 24 | . 15 . 9 Melee . | . . . . Ram . | . . . . Kick . | . . . . Crush . | . . . . Escape Stasis . | . . . . Rewire . | . . . . Trap . | . . . . Miscellaneous . | . . . . Route ------- -11/Scrapyard -10/Materials -10/Mines -10/Subcaves History --------- Turn | Location | Event 3 | -11/Scrapyard | Discovered new exit (range 15) 100 | -11/Scrapyard | Entered Materials 280 | -10/Materials | Discovered new exit (range 14) 303 | -10/Materials | Build established: Mutant 374 | -10/Materials | Entered Mines 410 | -10/Mines | Met a Derelict bent on vengeance 470 | -10/Mines | Met a Derelict who couldn't figure out how to use a Trap Extractor 547 | -10/Mines | Learned location of Storage (-8) 571 | -10/Mines | Discovered new exit (range 9) 583 | -10/Mines | Entered Subcaves 591 | -10/Subcaves | Learned 2 Materials zone layouts 651 | -10/Subcaves | Core integrity fell below 50% 664 | -10/Subcaves | Core integrity fell below 20% 666 | -10/Subcaves | Destroyed by 78-KKI(R) with Subdweller Machine Gun Last Messages --------------- 00549_ QY-92Z(g) slips back into the shadows. 00571_ EXIT=FOUND 00572_ T-07 Excavator is excavating. 00573_ U-05 Engineer builds a Wall. 00577_ T-07 Excavator is excavating. 00577_ U-05 Engineer lays Concrete. 00581_ T-07 Excavator is excavating. LOCATION=UNKNOWN AMBIENT_HEAT=-10 GOAL=ESCAPE 00591_ Acquired derelict log, extracted data. Data stored: Materials zone layouts (x2). 00614_ QK-RU9(R) emerges from the Twisted Machinery. 00656_ ZR-O93(R) destroyed. 00656_ Switching to secondary target: RY-LP8(R). 00658_ EM Pulse Gun destroyed. 00660_ Lgt. Ion Engine destroyed. 00660_ Imp. Propulsion Shielding destroyed. 00661_ KD-Y8V(R) suffers critical hit (Burn). 00665_ Aluminum Leg destroyed. Map ----- +----------------------------------------------------+ | ????????????????????????????????????"???# ??##???? | | ???????????????????????????????????"" ??# ## ????? | | ???????????????????????????????????#" ?? ????? | | ??????????????????????????????????## ??" ""????? | | ????????????????????????????##?#### ""??# ????? | | ????????????????????????????? # ### #????? | | ?????????????????????????? ### % ????? | | ?????????????????????????# [ #????? | | ?????????????????????????# #????? | | ??????????????????????????# ## #????? | | ???????????????????????????# # #????? | | ????????????????????????????# ## ##????? | | ????????????????????? ???????# ## ## #????? | | ?????????????????????? ???###?????### # #????? | | ?????????????????????? ??# ????## ##????? | | ??????????????????????# ## ???# #?????? | | ???????????????????????# #?## ##?????? | | ?????????????????????????#" ## ##?###?? | | ???????????????????????????#" ### ### | | ???????????????????????????## # | | ??????????????????? ????????# ## # | | ???????????????????? ???????#### | | ????????????????????""##???## # | | ????????????????????""" ??# ## # | | ???????????????????""""""### ## | | ?????????????????????#"""@## ## ## | | ?????????????????????# " *R! #### # # | | ?????????????????????## RR #??# ## | | ??????????????????????## #??## ### | | ???????????????????????### ## ##???###?## | | ?????????????????????????###### ##?????????## | | ??????????????????????????????## #????????????# | | ???????????????????????????????# ##????????????? | | ???????????????????????????????#####?????????????? | | ?????????????????????????????????????????????????? | | ?????????????????????????????????????????????????? | | ?????????????????????????????????????????????????? | | ?????????????????????????????????????????????????? | | ?????????????????????????????????????????????????? | | ?????????????????????????????????????????????????? | | ?????????????????????????????????????????????????? | | ?????????????????????????????????????????????????? | | ?????????????????????????????????????????????????? | | ?????????????????????????????????????????????????? | | ?????????????????????????????????????????????????? | | ?????????????????????????????????????????????????? | | ?????????????????????????????????????????????????? | | ?????????????????????????????????????????????????? | | ?????????????????????????????????????????????????? | | | +----------------------------------------------------+ Best States ------------- Heat Dissipation 25 Energy Generation 10 Energy Capacity 125 Matter Stores 300 Matter Capacity 300 Sight Range 16 Terrain Scan Range 14 Terrain Scan Density 10 Propulsion Shielding 66 Evasion (%) 55 Item Schematics ----------------- None Robot Schematics ------------------ None Fabricated ------------ Nothing Repaired ---------- Nothing Alien Tech Used ----------------- None Achievements -------------- None Challenges ------------ None Game ------ Seed MagneticTacticalRipteeth Manual? 0 Play Time 00:25:02 Cumulative 30.1 hours Start 2025.05.09 @ 14:59:21 End 2025.05.09 @ 15:32:47 Sessions 1 Manual Loads 0 Difficulty Rogue Special Mode None Game No. 26 Rogue 25 Adventurer 0 Explorer 1 Win Type - Total 0 Types 0/0/0/0/0/0/0/0/0/0 Lore% 13 Gallery% 25 Achievement% 18 Wizard Run 0 Options --------- Layout 0 ASCII 0 Keyboard 0 Movement Numpad Keybinds 1 Fullscreen 2 Font 24/Smallcaps Map View 76x50 Zoom Use 0% Tactical HUD 1 Map Filters NONE Filters NONE Steam 1 RUN: dcefcb58-a04f-4468-b064-1efc053943e4